[Event "Early-Titled-Tuesday-Blitz-June-18-2024"]
[Site "Chess.com"]
[Date "2024.06.18"]
[Round "10"]
[White "falzehope0"]
[Black "Guldona_2007"]
[Result "1/2-1/2"]
[WhiteElo "2452"]
[BlackElo "2295"]
[TimeControl "180+1"]
[EndTime "9:58:29 PDT"]
[Termination "Game drawn by repetition"]

1. d4 {[%clk 0:03:00.9]} 1... f5 {[%clk 0:02:59.2]} 2. e3 {[%clk 0:03:01.7]}
2... Nf6 {[%clk 0:02:58.4]} 3. Bd3 {[%clk 0:03:02.3]} 3... g6 {[%clk 0:02:57.6]}
4. f4 {[%clk 0:03:02.7]} 4... Bg7 {[%clk 0:02:57.1]} 5. Nf3 {[%clk 0:03:03.4]}
5... O-O {[%clk 0:02:56.1]} 6. O-O {[%clk 0:03:04]} 6... d6 {[%clk 0:02:55]} 7.
Nbd2 {[%clk 0:03:04.5]} 7... e6 {[%clk 0:02:51.1]} 8. e4 {[%clk 0:03:04.4]} 8...
fxe4 {[%clk 0:02:50]} 9. Nxe4 {[%clk 0:03:03.7]} 9... Nbd7 {[%clk 0:02:44.6]}
10. Neg5 {[%clk 0:02:58.9]} 10... Nb6 {[%clk 0:02:40.5]} 11. Qe2 {[%clk
0:02:57.9]} 11... Qe7 {[%clk 0:02:30.5]} 12. Re1 {[%clk 0:02:55.4]} 12... Nfd5
{[%clk 0:02:17.2]} 13. Nxe6 {[%clk 0:02:45.6]} 13... Bxe6 {[%clk 0:02:17]} 14.
Qxe6+ {[%clk 0:02:44.5]} 14... Qxe6 {[%clk 0:02:17.4]} 15. Rxe6 {[%clk
0:02:44.6]} 15... Nxf4 {[%clk 0:02:16.8]} 16. Bxf4 {[%clk 0:02:37.6]} 16... Rxf4
{[%clk 0:02:16.4]} 17. Re7 {[%clk 0:02:32.3]} 17... Rf7 {[%clk 0:02:14.3]} 18.
Rae1 {[%clk 0:02:32]} 18... Raf8 {[%clk 0:02:13.5]} 19. c3 {[%clk 0:02:25.1]}
19... Rxe7 {[%clk 0:01:53.4]} 20. Rxe7 {[%clk 0:02:26]} 20... Rf7 {[%clk
0:01:53.3]} 21. Re2 {[%clk 0:02:18.3]} 21... Bh6 {[%clk 0:01:46.6]} 22. a4
{[%clk 0:02:12.5]} 22... a5 {[%clk 0:01:41.9]} 23. b4 {[%clk 0:02:06.7]} 23...
d5 {[%clk 0:01:39.2]} 24. bxa5 {[%clk 0:02:01.2]} 24... Nxa4 {[%clk 0:01:36.9]}
25. Re8+ {[%clk 0:01:51.5]} 25... Rf8 {[%clk 0:01:28]} 26. Re7 {[%clk
0:01:51.1]} 26... Rf7 {[%clk 0:01:27]} 27. Re8+ {[%clk 0:01:27.1]} 27... Rf8
{[%clk 0:01:25.4]} 28. Re7 {[%clk 0:01:20.2]} 28... Rf7 {[%clk 0:01:25.1]} 29.
Rxf7 {[%clk 0:01:20.1]} 29... Kxf7 {[%clk 0:01:24.9]} 30. c4 {[%clk 0:01:09.2]}
30... Nb2 {[%clk 0:01:24.8]} 31. Ne5+ {[%clk 0:01:01.4]} 31... Ke7 {[%clk
0:01:24]} 32. cxd5 {[%clk 0:00:55.1]} 32... Be3+ {[%clk 0:01:21.1]} 33. Kf1
{[%clk 0:00:55]} 33... Bxd4 {[%clk 0:01:17.8]} 34. Nf3 {[%clk 0:00:54.7]} 34...
Bc3 {[%clk 0:01:07.8]} 35. a6 {[%clk 0:00:40.2]} 35... bxa6 {[%clk 0:01:07]} 36.
Bxa6 {[%clk 0:00:39.1]} 36... Na4 {[%clk 0:01:02.9]} 37. Bd3 {[%clk 0:00:28]}
37... Nb6 {[%clk 0:00:59]} 38. Ng5 {[%clk 0:00:26.6]} 38... h6 {[%clk
0:00:53.2]} 39. Ne4 {[%clk 0:00:18.6]} 39... Be5 {[%clk 0:00:52.4]} 40. d6+
{[%clk 0:00:14.7]} 40... cxd6 {[%clk 0:00:52]} 41. h3 {[%clk 0:00:13.7]} 41...
g5 {[%clk 0:00:51.6]} 42. Nd2 {[%clk 0:00:13.2]} 42... Nd5 {[%clk 0:00:50.5]}
43. Be4 {[%clk 0:00:06.9]} 43... Nc3 {[%clk 0:00:46.8]} 44. Bc6 {[%clk
0:00:05.9]} 44... Ke6 {[%clk 0:00:41.4]} 45. Nf3 {[%clk 0:00:06.1]} 45... Bf6
{[%clk 0:00:40.1]} 46. Ne1 {[%clk 0:00:06.4]} 46... d5 {[%clk 0:00:38.4]} 47.
Nd3 {[%clk 0:00:06.7]} 47... d4 {[%clk 0:00:37.1]} 48. Ba8 {[%clk 0:00:07.6]}
48... Kd6 {[%clk 0:00:33.5]} 49. Bf3 {[%clk 0:00:08.5]} 49... Na4 {[%clk
0:00:31.4]} 50. Nf2 {[%clk 0:00:08.6]} 50... Nc5 {[%clk 0:00:30.9]} 51. Ne4+
{[%clk 0:00:07.8]} 51... Nxe4 {[%clk 0:00:28.4]} 52. Bxe4 {[%clk 0:00:08.7]}
52... Ke5 {[%clk 0:00:28.5]} 53. Bd3 {[%clk 0:00:08.4]} 53... Kf4 {[%clk
0:00:28.3]} 54. Ke2 {[%clk 0:00:08.5]} 54... Kg3 {[%clk 0:00:28.1]} 55. Be4
{[%clk 0:00:08.6]} 55... Be5 {[%clk 0:00:27.7]} 56. Kd3 {[%clk 0:00:08.7]} 56...
h5 {[%clk 0:00:27.5]} 57. Bd5 {[%clk 0:00:08.5]} 57... Kf2 {[%clk 0:00:23.8]}
58. Be4 {[%clk 0:00:08.1]} 58... g4 {[%clk 0:00:20.8]} 59. hxg4 {[%clk 0:00:09]}
59... hxg4 {[%clk 0:00:21]} 60. Bd5 {[%clk 0:00:09.4]} 60... g3 {[%clk
0:00:21.1]} 61. Be4 {[%clk 0:00:10.2]} 61... Bf6 {[%clk 0:00:21.2]} 62. Bd5
{[%clk 0:00:11.1]} 62... Bg7 {[%clk 0:00:21.4]} 63. Be4 {[%clk 0:00:12]} 63...
Bf6 {[%clk 0:00:19.8]} 64. Bd5 {[%clk 0:00:12.9]} 64... Bg7 {[%clk 0:00:20.3]}
65. Bc6 {[%clk 0:00:13.7]} 65... Bf6 {[%clk 0:00:19.1]} 66. Bb7 {[%clk
0:00:14.6]} 66... Bg7 {[%clk 0:00:18.9]} 67. Ba8 {[%clk 0:00:15.5]} 67... Bh8
{[%clk 0:00:19]} 68. Bb7 {[%clk 0:00:16.4]} 68... Bg7 {[%clk 0:00:19.2]} 69. Ba8
{[%clk 0:00:17.3]} 69... Bh8 {[%clk 0:00:19.6]} 70. Bb7 {[%clk 0:00:18.2]} 70...
Bg7 {[%clk 0:00:20.2]} 1/2-1/2

[Event "Early-Titled-Tuesday-Blitz-June-18-2024"]
[Site "Chess.com"]
[Date "2024.06.18"]
[Round "10"]
[White "Losingexperience"]
[Black "GelmanAlexander"]
[Result "1-0"]
[WhiteElo "2768"]
[BlackElo "2658"]
[TimeControl "180+1"]
[EndTime "9:58:37 PDT"]
[Termination "Losingexperience won by resignation"]

1. e4 {[%clk 0:03:00.9]} 1... c5 {[%clk 0:03:00.1]} 2. Nf3 {[%clk 0:03:00.4]}
2... e6 {[%clk 0:03:00.6]} 3. d4 {[%clk 0:03:00.3]} 3... cxd4 {[%clk 0:03:00.9]}
4. Nxd4 {[%clk 0:03:01.2]} 4... a6 {[%clk 0:03:01.4]} 5. Bd3 {[%clk 0:03:00.8]}
5... d6 {[%clk 0:03:01.9]} 6. O-O {[%clk 0:03:00.8]} 6... Nf6 {[%clk 0:03:02.3]}
7. c4 {[%clk 0:03:01.1]} 7... Bd7 {[%clk 0:03:01.2]} 8. Nc3 {[%clk 0:03:01.1]}
8... Nc6 {[%clk 0:03:01.9]} 9. Nb3 {[%clk 0:03:01.3]} 9... Ne5 {[%clk
0:03:01.2]} 10. f4 {[%clk 0:02:54.4]} 10... Nxd3 {[%clk 0:03:01.2]} 11. Qxd3
{[%clk 0:02:55.3]} 11... Qc7 {[%clk 0:03:00.1]} 12. Be3 {[%clk 0:02:53]} 12...
Rc8 {[%clk 0:02:58.4]} 13. Nd2 {[%clk 0:02:49.6]} 13... Be7 {[%clk 0:02:56.8]}
14. h3 {[%clk 0:02:49.3]} 14... O-O {[%clk 0:02:57]} 15. Rac1 {[%clk 0:02:49.3]}
15... Rfd8 {[%clk 0:02:56.2]} 16. Rfe1 {[%clk 0:02:45.9]} 16... h6 {[%clk
0:02:55.4]} 17. Qe2 {[%clk 0:02:41.2]} 17... Qb8 {[%clk 0:02:53.1]} 18. Bb6
{[%clk 0:02:35.5]} 18... Re8 {[%clk 0:02:53.3]} 19. e5 {[%clk 0:02:35.5]} 19...
dxe5 {[%clk 0:02:53.7]} 20. fxe5 {[%clk 0:02:35.6]} 20... Nh7 {[%clk 0:02:53.1]}
21. Nf3 {[%clk 0:02:32.3]} 21... Bc6 {[%clk 0:02:51.8]} 22. Ne4 {[%clk
0:02:31.1]} 22... Bxe4 {[%clk 0:02:52.1]} 23. Qxe4 {[%clk 0:02:32]} 23... Ng5
{[%clk 0:02:52.6]} 24. Nxg5 {[%clk 0:02:29.1]} 24... Bxg5 {[%clk 0:02:53.5]} 25.
Rcd1 {[%clk 0:02:29.6]} 25... Bd8 {[%clk 0:02:46.3]} 26. Be3 {[%clk 0:02:26.6]}
26... Be7 {[%clk 0:02:42]} 27. Rd7 {[%clk 0:02:19]} 27... Rc7 {[%clk 0:02:37.3]}
28. Red1 {[%clk 0:02:19]} 28... Qc8 {[%clk 0:02:29.9]} 29. Rxc7 {[%clk
0:02:18.6]} 29... Qxc7 {[%clk 0:02:30.4]} 30. b3 {[%clk 0:02:18.3]} 30... b5
{[%clk 0:02:27.2]} 31. Rc1 {[%clk 0:02:13.6]} 31... bxc4 {[%clk 0:02:17]} 32.
Rxc4 {[%clk 0:02:11]} 32... Qa5 {[%clk 0:02:15]} 33. a4 {[%clk 0:02:03.9]} 33...
Qe1+ {[%clk 0:02:04.2]} 34. Kh2 {[%clk 0:02:03.7]} 34... Rb8 {[%clk 0:01:57.2]}
35. Qd3 {[%clk 0:01:43.9]} 35... Rd8 {[%clk 0:01:39.5]} 36. Qe4 {[%clk
0:01:29.7]} 36... a5 {[%clk 0:01:27.4]} 37. Qf3 {[%clk 0:01:21.1]} 37... h5
{[%clk 0:01:04.4]} 38. Rc7 {[%clk 0:01:18.3]} 38... Qb4 {[%clk 0:00:44.8]} 39.
Bc5 {[%clk 0:01:09.8]} 39... Qxc5 {[%clk 0:00:35.9]} 40. Rxc5 {[%clk 0:01:08.9]}
40... Bxc5 {[%clk 0:00:36.8]} 41. Qxh5 {[%clk 0:01:07.5]} 41... Rd5 {[%clk
0:00:33.9]} 42. Qe2 {[%clk 0:01:00]} 42... Bd4 {[%clk 0:00:33.2]} 43. Qc4 {[%clk
0:00:59.3]} 43... Bxe5+ {[%clk 0:00:32.8]} 44. Kg1 {[%clk 0:00:58]} 44... Bd6
{[%clk 0:00:32.7]} 45. Kf2 {[%clk 0:00:56.8]} 45... g5 {[%clk 0:00:32.3]} 46.
Kf3 {[%clk 0:00:47.7]} 46... Kg7 {[%clk 0:00:32.8]} 47. g4 {[%clk 0:00:42.8]}
47... Kf6 {[%clk 0:00:31.6]} 48. Qc8 {[%clk 0:00:40.9]} 48... Kg7 {[%clk
0:00:31.6]} 49. Ke4 {[%clk 0:00:37.7]} 49... Bb4 {[%clk 0:00:30.8]} 50. Qc1
{[%clk 0:00:32.8]} 50... Bd2 {[%clk 0:00:29.7]} 51. Qc6 {[%clk 0:00:29.2]} 51...
Bb4 {[%clk 0:00:28.7]} 52. Qc7 {[%clk 0:00:24.2]} 52... Bd6 {[%clk 0:00:28.3]}
53. Qc3+ {[%clk 0:00:21.9]} 53... Kg6 {[%clk 0:00:26.2]} 54. Qh8 {[%clk
0:00:21.9]} 54... Be5 {[%clk 0:00:24.6]} 55. Qh5+ {[%clk 0:00:20.8]} 55... Kf6
{[%clk 0:00:24.7]} 56. Qh6+ {[%clk 0:00:20.9]} 56... Ke7 {[%clk 0:00:25.3]} 57.
Qxg5+ {[%clk 0:00:21.1]} 57... Bf6 {[%clk 0:00:25.9]} 58. Qc1 {[%clk 0:00:21.3]}
58... Rd4+ {[%clk 0:00:25.5]} 59. Kf3 {[%clk 0:00:20.8]} 59... Kd6 {[%clk
0:00:25.7]} 60. Qa3+ {[%clk 0:00:19.7]} 60... Rb4 {[%clk 0:00:25.3]} 61. Qa2
{[%clk 0:00:18.2]} 61... Bd4 {[%clk 0:00:24.5]} 62. Qc2 {[%clk 0:00:17.1]} 62...
e5 {[%clk 0:00:24.1]} 63. h4 {[%clk 0:00:17.1]} 63... Bc5 {[%clk 0:00:21.7]} 64.
h5 {[%clk 0:00:16.6]} 64... Rf4+ {[%clk 0:00:22]} 65. Kg3 {[%clk 0:00:16.9]}
65... Bf2+ {[%clk 0:00:22.2]} 66. Qxf2 {[%clk 0:00:16.3]} 66... Rxf2 {[%clk
0:00:22]} 67. Kxf2 {[%clk 0:00:17.2]} 67... Ke6 {[%clk 0:00:21.1]} 68. Ke3
{[%clk 0:00:17.6]} 68... Kf6 {[%clk 0:00:21.3]} 69. Ke4 {[%clk 0:00:17.6]} 1-0

[Event "Early-Titled-Tuesday-Blitz-June-18-2024"]
[Site "Chess.com"]
[Date "2024.06.18"]
[Round "10"]
[White "esskeettit"]
[Black "Chempiblinka"]
[Result "1-0"]
[WhiteElo "2510"]
[BlackElo "2362"]
[TimeControl "180+1"]
[EndTime "9:58:38 PDT"]
[Termination "esskeettit won on time"]

1. d4 {[%clk 0:03:00.9]} 1... Nf6 {[%clk 0:02:58.5]} 2. c4 {[%clk 0:03:00.6]}
2... g6 {[%clk 0:02:59.1]} 3. Nc3 {[%clk 0:03:01.1]} 3... Bg7 {[%clk 0:02:59.7]}
4. e4 {[%clk 0:03:01.5]} 4... d6 {[%clk 0:03:00.3]} 5. Nf3 {[%clk 0:03:01.8]}
5... O-O {[%clk 0:03:01]} 6. Be2 {[%clk 0:03:02.2]} 6... Bg4 {[%clk 0:03:01.4]}
7. Be3 {[%clk 0:03:01.2]} 7... Nfd7 {[%clk 0:03:00]} 8. Rc1 {[%clk 0:03:01.2]}
8... Nc6 {[%clk 0:02:40.5]} 9. d5 {[%clk 0:02:58.4]} 9... Bxf3 {[%clk
0:02:35.9]} 10. Bxf3 {[%clk 0:02:58.5]} 10... Na5 {[%clk 0:02:28]} 11. Be2
{[%clk 0:02:51.6]} 11... b6 {[%clk 0:02:28.3]} 12. b4 {[%clk 0:02:27.7]} 12...
Nb7 {[%clk 0:02:28]} 13. O-O {[%clk 0:02:26.4]} 13... a5 {[%clk 0:02:28.7]} 14.
b5 {[%clk 0:02:23.9]} 14... Nbc5 {[%clk 0:02:22.4]} 15. Bd4 {[%clk 0:02:19.6]}
15... e5 {[%clk 0:02:13]} 16. dxe6 {[%clk 0:02:09.5]} 16... fxe6 {[%clk
0:02:13.1]} 17. Bxg7 {[%clk 0:01:59.5]} 17... Kxg7 {[%clk 0:02:13]} 18. Bg4
{[%clk 0:01:59.2]} 18... e5 {[%clk 0:02:11.7]} 19. Bxd7 {[%clk 0:01:50.3]} 19...
Qxd7 {[%clk 0:02:11.2]} 20. f3 {[%clk 0:01:30.4]} 20... Rf7 {[%clk 0:02:06.8]}
21. Qd2 {[%clk 0:01:27.6]} 21... Raf8 {[%clk 0:02:06.9]} 22. Rcd1 {[%clk
0:01:20.6]} 22... Qe6 {[%clk 0:02:07.1]} 23. Nd5 {[%clk 0:01:19.7]} 23... Qd7
{[%clk 0:01:48.5]} 24. Qg5 {[%clk 0:01:17.5]} 24... Qd8 {[%clk 0:01:40]} 25. Qg3
{[%clk 0:01:12.4]} 25... Ne6 {[%clk 0:01:35.4]} 26. Rfe1 {[%clk 0:00:58.2]}
26... Nd4 {[%clk 0:01:34.8]} 27. Rd3 {[%clk 0:00:48.7]} 27... h5 {[%clk
0:01:32.4]} 28. h3 {[%clk 0:00:42.9]} 28... Kh7 {[%clk 0:01:19.1]} 29. Kh1
{[%clk 0:00:37.8]} 29... Qd7 {[%clk 0:01:17.2]} 30. Red1 {[%clk 0:00:34.6]}
30... Qe6 {[%clk 0:01:17.5]} 31. Kh2 {[%clk 0:00:23.3]} 31... Ne2 {[%clk
0:01:11.5]} 32. Qf2 {[%clk 0:00:18]} 32... Nf4 {[%clk 0:01:11.4]} 33. R3d2
{[%clk 0:00:13.2]} 33... g5 {[%clk 0:00:55.6]} 34. Qg3 {[%clk 0:00:12.4]} 34...
Kh6 {[%clk 0:00:45.9]} 35. a4 {[%clk 0:00:10.5]} 35... Nxh3 {[%clk 0:00:42]} 36.
Qxh3 {[%clk 0:00:09.4]} 36... Qg6 {[%clk 0:00:36.4]} 37. Ne3 {[%clk 0:00:08.2]}
37... Kg7 {[%clk 0:00:28.7]} 38. Nf5+ {[%clk 0:00:08.3]} 38... Kg8 {[%clk
0:00:29.3]} 39. Qg3 {[%clk 0:00:08.1]} 39... g4 {[%clk 0:00:27.5]} 40. fxg4
{[%clk 0:00:08.2]} 40... hxg4 {[%clk 0:00:27.8]} 41. Qxg4 {[%clk 0:00:06.3]}
41... Rh7+ {[%clk 0:00:25]} 42. Kg3 {[%clk 0:00:06]} 42... Rf6 {[%clk
0:00:17.6]} 43. Qxg6+ {[%clk 0:00:06]} 43... Rxg6+ {[%clk 0:00:18]} 44. Kf2
{[%clk 0:00:06.7]} 44... Rh2 {[%clk 0:00:17.6]} 45. Rg1 {[%clk 0:00:07.3]} 45...
Kf7 {[%clk 0:00:17]} 46. Rd3 {[%clk 0:00:07]} 46... Rg4 {[%clk 0:00:17]} 47. Rf3
{[%clk 0:00:06.1]} 47... Ke6 {[%clk 0:00:16.4]} 48. Ng3 {[%clk 0:00:06.3]} 48...
Rh7 {[%clk 0:00:15.8]} 49. Rf5 {[%clk 0:00:06.2]} 49... Rhg7 {[%clk 0:00:16]}
50. Rf3 {[%clk 0:00:06.4]} 50... Kd7 {[%clk 0:00:15.3]} 51. Rh1 {[%clk
0:00:06.9]} 51... Kc8 {[%clk 0:00:14.7]} 52. Rh8+ {[%clk 0:00:06.9]} 52... Kb7
{[%clk 0:00:15.3]} 53. Rhf8 {[%clk 0:00:07.2]} 53... c6 {[%clk 0:00:14]} 54.
R8f7+ {[%clk 0:00:06]} 54... Rxf7 {[%clk 0:00:14.5]} 55. Rxf7+ {[%clk
0:00:06.7]} 55... Kc8 {[%clk 0:00:15.4]} 56. bxc6 {[%clk 0:00:06.9]} 56... Rh4
{[%clk 0:00:08.6]} 57. c7 {[%clk 0:00:06.8]} 57... Rh2 {[%clk 0:00:07.6]} 58.
Nf5 {[%clk 0:00:07]} 1-0

[Event "Early-Titled-Tuesday-Blitz-June-18-2024"]
[Site "Chess.com"]
[Date "2024.06.18"]
[Round "10"]
[White "blitzking1729"]
[Black "FGHSMN"]
[Result "1-0"]
[WhiteElo "2842"]
[BlackElo "2899"]
[TimeControl "180+1"]
[EndTime "9:58:41 PDT"]
[Termination "blitzking1729 won on time"]

1. Nf3 {[%clk 0:02:58.4]} 1... Nf6 {[%clk 0:02:59.3]} 2. d4 {[%clk 0:02:58.1]}
2... b6 {[%clk 0:02:59.9]} 3. g3 {[%clk 0:02:52.2]} 3... Bb7 {[%clk 0:03:00.5]}
4. Bg2 {[%clk 0:02:52.9]} 4... g6 {[%clk 0:03:01.3]} 5. O-O {[%clk 0:02:53.4]}
5... Bg7 {[%clk 0:03:02]} 6. Re1 {[%clk 0:02:53.6]} 6... O-O {[%clk 0:03:01.7]}
7. Nbd2 {[%clk 0:02:53.9]} 7... c5 {[%clk 0:02:55.7]} 8. e4 {[%clk 0:02:50.5]}
8... cxd4 {[%clk 0:02:55.6]} 9. e5 {[%clk 0:02:47.1]} 9... Ne8 {[%clk 0:02:54]}
10. Nb3 {[%clk 0:02:42.3]} 10... Nc6 {[%clk 0:02:49.9]} 11. Nfxd4 {[%clk
0:02:42.3]} 11... Qc8 {[%clk 0:02:36]} 12. Nf3 {[%clk 0:02:33.6]} 12... Nc7
{[%clk 0:02:08.8]} 13. h4 {[%clk 0:02:33.4]} 13... Ne6 {[%clk 0:02:06.1]} 14. h5
{[%clk 0:02:32.5]} 14... Rd8 {[%clk 0:02:06.3]} 15. h6 {[%clk 0:02:32.1]} 15...
Bh8 {[%clk 0:02:06.1]} 16. Qe2 {[%clk 0:02:30]} 16... d6 {[%clk 0:02:04.1]} 17.
exd6 {[%clk 0:02:30]} 17... Rxd6 {[%clk 0:02:05]} 18. c3 {[%clk 0:02:29.7]}
18... Qc7 {[%clk 0:02:01]} 19. Ng5 {[%clk 0:02:28.1]} 19... Rad8 {[%clk
0:01:38.3]} 20. Ne4 {[%clk 0:02:08.2]} 20... R6d7 {[%clk 0:01:37.8]} 21. Bh3
{[%clk 0:02:07.6]} 21... Ne5 {[%clk 0:01:28.7]} 22. Bxe6 {[%clk 0:02:03.7]}
22... fxe6 {[%clk 0:01:29.6]} 23. Bf4 {[%clk 0:02:01]} 23... Qc6 {[%clk
0:00:58.9]} 24. Nd4 {[%clk 0:01:59.3]} 24... Qd5 {[%clk 0:00:55.3]} 25. f3
{[%clk 0:01:58.6]} 25... Nf7 {[%clk 0:00:52]} 26. Red1 {[%clk 0:01:41.7]} 26...
e5 {[%clk 0:00:50.5]} 27. Nb3 {[%clk 0:01:27.3]} 27... Qxd1+ {[%clk 0:00:49.6]}
28. Rxd1 {[%clk 0:01:26.8]} 28... Rxd1+ {[%clk 0:00:50.5]} 29. Kg2 {[%clk
0:01:27.1]} 29... exf4 {[%clk 0:00:50.6]} 30. Ned2 {[%clk 0:01:27.8]} 30...
R1xd2 {[%clk 0:00:44.3]} 31. Nxd2 {[%clk 0:01:28.3]} 31... Bf6 {[%clk 0:00:45]}
32. gxf4 {[%clk 0:01:22.3]} 32... Nxh6 {[%clk 0:00:44.4]} 33. Ne4 {[%clk
0:01:22.2]} 33... Nf5 {[%clk 0:00:38.5]} 34. Qc4+ {[%clk 0:01:21.1]} 34... Bd5
{[%clk 0:00:37.8]} 35. Qc7 {[%clk 0:01:20.7]} 35... Ra8 {[%clk 0:00:27]} 36. a4
{[%clk 0:01:18.5]} 36... Nh4+ {[%clk 0:00:18.1]} 37. Kf2 {[%clk 0:01:07.8]}
37... Nf5 {[%clk 0:00:18.7]} 38. Qd7 {[%clk 0:01:05.9]} 38... Bf7 {[%clk
0:00:16.3]} 39. b4 {[%clk 0:00:54.4]} 39... Bh4+ {[%clk 0:00:15.1]} 40. Kg2
{[%clk 0:00:54]} 40... Ne3+ {[%clk 0:00:14.4]} 41. Kh3 {[%clk 0:00:49.6]} 41...
Bf6 {[%clk 0:00:14.9]} 42. a5 {[%clk 0:00:41.5]} 42... bxa5 {[%clk 0:00:14.7]}
43. bxa5 {[%clk 0:00:41.9]} 43... Nd5 {[%clk 0:00:15.3]} 44. Kg3 {[%clk
0:00:35.7]} 44... Nxc3 {[%clk 0:00:11.3]} 45. Nxf6+ {[%clk 0:00:32.6]} 45...
exf6 {[%clk 0:00:11.1]} 46. Qc6 {[%clk 0:00:33.3]} 46... Ne2+ {[%clk 0:00:11.8]}
47. Kf2 {[%clk 0:00:31]} 47... Re8 {[%clk 0:00:12.7]} 48. Qb7 {[%clk 0:00:29.7]}
48... Nxf4 {[%clk 0:00:11.1]} 49. Qxa7 {[%clk 0:00:30.3]} 49... Nd3+ {[%clk
0:00:10.6]} 50. Kg3 {[%clk 0:00:28.5]} 50... h5 {[%clk 0:00:09.8]} 51. a6 {[%clk
0:00:27.3]} 51... g5 {[%clk 0:00:06.3]} 52. Qb6 {[%clk 0:00:20.6]} 52... h4+
{[%clk 0:00:07.1]} 53. Kg2 {[%clk 0:00:19.4]} 53... Nf4+ {[%clk 0:00:06.4]} 54.
Kf2 {[%clk 0:00:17.3]} 54... Re2+ {[%clk 0:00:05.2]} 55. Kf1 {[%clk 0:00:15]}
55... Kg7 {[%clk 0:00:02.9]} 56. Qb7 {[%clk 0:00:13.7]} 56... Ra2 {[%clk
0:00:01.6]} 57. a7 {[%clk 0:00:13.9]} 57... Kg6 {[%clk 0:00:01.4]} 58. a8=Q
{[%clk 0:00:12.9]} 58... Bc4+ {[%clk 0:00:01.5]} 59. Kg1 {[%clk 0:00:08.9]} 1-0

[Event "Early-Titled-Tuesday-Blitz-June-18-2024"]
[Site "Chess.com"]
[Date "2024.06.18"]
[Round "10"]
[White "TitarovVasiliYouTube"]
[Black "Zampronha1971"]
[Result "1-0"]
[WhiteElo "2580"]
[BlackElo "2407"]
[TimeControl "180+1"]
[EndTime "9:58:43 PDT"]
[Termination "TitarovVasiliYouTube won on time"]

1. e4 {[%clk 0:02:59.4]} 1... c5 {[%clk 0:02:59.4]} 2. Nf3 {[%clk 0:02:54.1]}
2... e6 {[%clk 0:03:00]} 3. c3 {[%clk 0:02:51.4]} 3... Nf6 {[%clk 0:02:58.5]} 4.
e5 {[%clk 0:02:48.4]} 4... Nd5 {[%clk 0:02:58.9]} 5. d4 {[%clk 0:02:49.1]} 5...
cxd4 {[%clk 0:02:59]} 6. cxd4 {[%clk 0:02:49.5]} 6... b6 {[%clk 0:02:59.2]} 7.
Nc3 {[%clk 0:02:48.3]} 7... Nxc3 {[%clk 0:02:59.1]} 8. bxc3 {[%clk 0:02:49.2]}
8... Qc7 {[%clk 0:02:59.7]} 9. Bd2 {[%clk 0:02:48.9]} 9... Bb7 {[%clk
0:03:00.3]} 10. Bd3 {[%clk 0:02:47.6]} 10... d6 {[%clk 0:03:00.7]} 11. O-O
{[%clk 0:02:46.7]} 11... Nd7 {[%clk 0:03:01.3]} 12. Re1 {[%clk 0:02:39]} 12...
Be7 {[%clk 0:03:00.5]} 13. h4 {[%clk 0:02:30.2]} 13... dxe5 {[%clk 0:02:56.4]}
14. Nxe5 {[%clk 0:02:29.2]} 14... Nxe5 {[%clk 0:02:56.3]} 15. Rxe5 {[%clk
0:02:29.4]} 15... Bf6 {[%clk 0:02:42]} 16. Bb5+ {[%clk 0:02:25.5]} 16... Bc6
{[%clk 0:02:38.9]} 17. Qf3 {[%clk 0:02:25]} 17... Rc8 {[%clk 0:02:33.6]} 18.
Bxc6+ {[%clk 0:02:24.2]} 18... Qxc6 {[%clk 0:02:33.4]} 19. Qxc6+ {[%clk
0:02:24.4]} 19... Rxc6 {[%clk 0:02:34.3]} 20. Rb5 {[%clk 0:02:25.1]} 20... Bxh4
{[%clk 0:02:15.5]} 21. a4 {[%clk 0:02:24.9]} 21... Bd8 {[%clk 0:02:14.4]} 22. a5
{[%clk 0:02:23.5]} 22... Kd7 {[%clk 0:02:13.7]} 23. axb6 {[%clk 0:02:22.5]}
23... Bxb6 {[%clk 0:02:12.3]} 24. g4 {[%clk 0:02:16.1]} 24... Rhc8 {[%clk
0:02:09.6]} 25. Kg2 {[%clk 0:02:15]} 25... Rd6 {[%clk 0:02:03.1]} 26. Rh5 {[%clk
0:02:12.3]} 26... h6 {[%clk 0:02:01.8]} 27. Kf3 {[%clk 0:02:07.7]} 27... Rd5
{[%clk 0:01:59.5]} 28. Rh3 {[%clk 0:01:56.5]} 28... Rb5 {[%clk 0:01:55.3]} 29.
Ke4 {[%clk 0:01:54.9]} 29... Rb2 {[%clk 0:01:51.8]} 30. Kd3 {[%clk 0:01:54.5]}
30... Rb5 {[%clk 0:01:34.6]} 31. Rf3 {[%clk 0:01:48.9]} 31... f6 {[%clk
0:01:30.1]} 32. Re3 {[%clk 0:01:40.2]} 32... e5 {[%clk 0:01:24.8]} 33. Re4
{[%clk 0:01:31.4]} 33... exd4 {[%clk 0:01:22.7]} 34. Rae1 {[%clk 0:01:31.1]}
34... Re5 {[%clk 0:00:56.8]} 35. Rxe5 {[%clk 0:01:27.9]} 35... fxe5 {[%clk
0:00:57.7]} 36. Rxe5 {[%clk 0:01:28.3]} 36... dxc3 {[%clk 0:00:56.7]} 37. Bxc3
{[%clk 0:01:28.9]} 37... Rc7 {[%clk 0:00:13.3]} 38. f4 {[%clk 0:01:26.6]} 38...
Kd8 {[%clk 0:00:08.5]} 39. Re6 {[%clk 0:01:22.2]} 39... Rf7 {[%clk 0:00:08.3]}
40. f5 {[%clk 0:01:21]} 40... Bc5 {[%clk 0:00:02.6]} 41. Rg6 {[%clk 0:01:17.5]}
41... Bf8 {[%clk 0:00:02.9]} 42. Ke4 {[%clk 0:01:16.8]} 42... Rd7 {[%clk
0:00:03.4]} 43. Ke5 {[%clk 0:01:10.3]} 43... Ke8 {[%clk 0:00:04.1]} 44. Kf4
{[%clk 0:01:03.3]} 44... Re7 {[%clk 0:00:04.6]} 45. Bb4 {[%clk 0:01:01]} 45...
Rb7 {[%clk 0:00:04.1]} 46. Bc3 {[%clk 0:00:59.3]} 46... Kf7 {[%clk 0:00:03.8]}
47. Ra6 {[%clk 0:00:59.3]} 47... Bd6+ {[%clk 0:00:03.3]} 48. Ke4 {[%clk
0:00:58.9]} 48... Bb8 {[%clk 0:00:04.1]} 49. Rg6 {[%clk 0:00:56.9]} 49... Kg8
{[%clk 0:00:04.6]} 50. Bd4 {[%clk 0:00:57.3]} 50... Kh7 {[%clk 0:00:04.8]} 51.
Ra6 {[%clk 0:00:57]} 51... Rd7 {[%clk 0:00:04.9]} 52. Bc3 {[%clk 0:00:54.1]}
52... Rb7 {[%clk 0:00:05.4]} 53. Re6 {[%clk 0:00:52.1]} 53... Rd7 {[%clk
0:00:05.4]} 54. Ba5 {[%clk 0:00:42.6]} 54... Rb7 {[%clk 0:00:05.5]} 55. Re8
{[%clk 0:00:42.7]} 55... Rb5 {[%clk 0:00:05.5]} 56. Bc3 {[%clk 0:00:40.9]} 56...
Rb7 {[%clk 0:00:05.9]} 57. Kd5 {[%clk 0:00:38]} 57... Rb5+ {[%clk 0:00:05.6]}
58. Kc6 {[%clk 0:00:37]} 58... Rb3 {[%clk 0:00:06.2]} 59. Bd4 {[%clk 0:00:35.1]}
59... Bf4 {[%clk 0:00:06.1]} 60. Re7 {[%clk 0:00:33.1]} 60... h5 {[%clk
0:00:05.4]} 61. Rxg7+ {[%clk 0:00:33]} 61... Kh6 {[%clk 0:00:05.9]} 62. Rg6+
{[%clk 0:00:33.8]} 62... Kh7 {[%clk 0:00:05.6]} 63. g5 {[%clk 0:00:33.7]} 63...
h4 {[%clk 0:00:05.7]} 64. Rg7+ {[%clk 0:00:33.7]} 64... Kh8 {[%clk 0:00:06.1]}
65. Rb7+ {[%clk 0:00:34.4]} 65... Kg8 {[%clk 0:00:04.6]} 66. Rxb3 {[%clk
0:00:33.8]} 1-0